bitfinex-derivatives/quotes_SOLF0:USTF0_20260203
["timestamp","ask_amount","ask_price","bid_price","bid_amount"]
[1770096804878,3.62730142,104.0,103.95,3.59903222]
[1770096805077,3.62730142,104.0,103.95,6.5663984]
[1770096805270,3.62730142,104.0,103.95,3.59903222]
[1770096809680,8.6612,104.01,103.95,3.59903222]
[1770096809979,12.28850142,104.01,103.95,3.59903222]
[1770096810581,15.2558676,104.01,103.95,3.59903222]
[1770096814081,6.5946676,104.01,103.96,3.59903222]
[1770096814482,3.62730142,104.01,103.96,3.59903222]
[1770096815081,6.5946676,104.0,103.95,3.59903222]
[1770096816487,6.58911121,104.0,103.95,3.59903222]
[1770096818089,3.62730142,104.0,103.95,3.59903222]
[1770096818588,6.58911121,104.0,103.95,3.59903222]
[1770096822694,6.58911121,103.98,103.93,3.59903222]
[1770096823093,2.96180979,103.97,103.93,3.59903222]
[1770096824293,6.58911121,103.97,103.91,12.26853222]
[1770096824592,2.96180979,103.96,103.91,12.26853222]
[1770096824792,6.58911121,103.97,103.91,12.26853222]
[1770096825389,15.25371121,103.97,103.91,12.26853222]
[1770096825989,6.58911121,103.95,103.89,12.26943222]
[1770096826693,2.96180979,103.94,103.89,12.26943222]
[1770096826990,2.96180979,103.92,103.87,3.59903222]
[1770096827986,2.96180979,103.91,103.87,3.59903222]
[1770096832399,6.50517602,103.94,103.88,3.55195266]
[1770096833300,2.96180979,103.93,103.88,12.22395266]
[1770096835900,2.96180979,103.92,103.88,3.55195266]
[1770096836198,2.96180979,103.9,103.86,3.55195266]
[1770096837504,3.54336623,103.92,103.86,3.55195266]
[1770096837505,2.96180979,103.92,103.86,3.55195266]
[1770096837799,2.96180979,103.93,103.88,3.55195266]
[1770096837999,2.96180979,103.94,103.88,3.55195266]
[1770096838195,6.50517602,103.96,103.89,6.51376245]
[1770096838400,3.54336623,103.95,103.89,6.51376245]
[1770096838595,3.54336623,103.95,103.89,3.55195266]
[1770096838795,3.54336623,103.94,103.89,6.51376245]
[1770096839403,3.54336623,103.93,103.87,6.51376245]
[1770096841604,3.54336623,103.93,103.88,3.55195266]
[1770096842106,3.54336623,103.93,103.88,6.51376245]
[1770096843106,3.54336623,103.93,103.89,3.55195266]
[1770096844206,3.54336623,103.93,103.89,6.51376245]
[1770096845309,3.54336623,103.93,103.89,3.55195266]
[1770096847711,3.54336623,103.93,103.89,6.51376245]
[1770096853216,2.96180979,103.96,103.89,6.51376245]
[1770096853217,12.20876623,103.96,103.91,6.51376245]
[1770096853612,3.54336623,103.95,103.89,6.51376245]
[1770096854112,6.50517602,103.95,103.89,6.51376245]
[1770096854817,6.50517602,103.95,103.9,3.55195266]
[1770096855017,15.17207602,103.95,103.9,3.55195266]
[1770096855217,6.50517602,103.95,103.9,3.55195266]
[1770096856320,8.6673,103.94,103.9,3.55195266]
[1770096858615,12.21066623,103.94,103.9,3.55195266]
[1770096858811,3.54336623,103.94,103.9,3.55195266]
[1770096859917,3.54336623,103.93,103.88,3.55195266]
[1770096860313,3.69872868,103.92,103.86,6.60039899]
[1770096860621,3.69872868,103.91,103.86,3.6385892]
[1770096862724,3.69872868,103.91,103.86,12.3122892]
[1770096862926,12.36832868,103.91,103.86,3.6385892]
[1770096863426,15.33013847,103.91,103.86,3.6385892]
[1770096864818,3.69872868,103.89,103.84,3.6385892]
[1770096865025,6.66053847,103.89,103.84,3.6385892]
[1770096865517,15.33173847,103.89,103.84,3.6385892]
[1770096865720,6.66053847,103.88,103.85,3.983e-05]
[1770096866224,15.33093847,103.9,103.85,3.983e-05]
[1770096866424,12.36912868,103.9,103.85,3.983e-05]
[1770096869129,12.36912868,103.9,103.85,6.60043882]
[1770096869322,12.36802868,103.92,103.87,3.6385892]
[1770096870523,12.36802868,103.92,103.87,6.60039899]
[1770096870928,3.69872868,103.92,103.87,6.60039899]
[1770096871121,0.06083549,103.91,103.87,6.60039899]
[1770096872732,0.06083549,103.91,103.88,3.6385892]
[1770096873035,3.69872868,103.94,103.89,3.6385892]
[1770096873237,3.69872868,103.94,103.89,6.60039899]
[1770096878346,3.69872868,103.94,103.89,6.60321846]
[1770096879936,3.69872868,103.96,103.91,6.60321846]
[1770096880242,3.69872868,103.96,103.92,3.6385892]
[1770096881449,3.69872868,103.98,103.93,6.60321846]
[1770096883941,3.69872868,103.98,103.94,6.60321846]
[1770096884143,8.6619,104.01,103.96,6.60321846]
[1770096884446,3.69872868,104.02,103.96,6.60321846]
[1770096884642,3.69872868,104.02,103.97,6.60321846]
[1770096885048,3.69872868,104.02,103.96,2.96462926]
[1770096885250,3.69872868,104.02,103.96,6.60321846]
[1770096888346,3.69872868,104.01,103.96,6.60321846]
[1770096888548,3.69872868,104.0,103.94,6.60321846]
[1770096888851,3.69872868,104.0,103.95,3.6385892]
[1770096889352,6.66335794,104.0,103.95,3.6385892]
[1770096891652,6.66120178,103.98,103.93,3.68146756]
[1770096891845,2.96462926,103.97,103.93,3.68146756]
[1770096893255,2.96462926,103.97,103.94,0.06071784]
[1770096893655,15.32490178,103.98,103.94,0.06071784]
[1770096895458,6.66120178,103.97,103.91,12.35046756]
[1770096896753,6.66120178,103.96,103.91,12.35046756]
[1770096898754,2.96462926,103.95,103.91,12.35046756]
[1770096899559,15.32460178,103.99,103.93,3.68146756]
[1770096899762,3.69657252,103.98,103.93,3.68146756]
[1770096899957,3.69657252,103.98,103.93,6.64609682]
[1770096900156,8.6634,103.99,103.94,3.68146756]
[1770096900358,8.6634,103.99,103.94,6.64609682]
[1770096900554,3.69657252,104.0,103.95,6.64609682]
[1770096901054,8.662,104.01,103.96,6.64609682]
[1770096901260,3.69657252,104.02,103.97,6.64609682]
[1770096901465,3.69657252,104.02,103.98,2.96462926]
[1770096903960,3.69657252,104.0,103.95,6.64609682]
[1770096904160,6.66120178,104.0,103.95,3.68146756]
[1770096905367,2.96462926,104.03,103.97,3.68146756]
[1770096905969,6.66120178,104.03,103.97,3.68146756]
[1770096906469,3.69657252,104.03,103.98,3.68146756]
[1770096908370,12.35617252,104.03,103.98,3.68146756]
[1770096909274,15.32080178,104.03,103.98,3.68146756]
[1770096914172,2.96462926,104.06,104.0,3.68146756]
[1770096914367,6.66120178,104.07,104.01,3.68146756]
[1770096914573,3.69657252,104.07,104.02,3.68146756]
[1770096914873,15.31640178,104.09,104.02,3.68146756]
[1770096915072,15.31640178,104.09,104.02,6.64609682]
[1770096915466,0.06131059,104.06,104.02,6.64609682]
[1770096915873,0.06131059,104.06,104.02,15.30629682]
[1770096916374,0.06131059,104.06,104.03,3.68146756]
[1770096917175,0.06131059,104.06,104.03,12.34096756]
[1770096917371,3.69657252,104.08,104.03,12.34096756]
[1770096917974,6.66120178,104.08,104.01,6.64609682]
[1770096918171,6.66120178,104.08,104.01,3.68146756]
[1770096918367,2.96462926,104.07,104.01,3.68146756]
[1770096918775,6.66120178,104.07,104.01,3.68146756]
[1770096918970,6.66120178,104.06,104.01,3.68146756]
[1770096919477,3.69657252,104.08,104.02,3.68146756]
[1770096919678,2.96462926,104.07,104.02,3.68146756]
[1770096919976,6.66120178,104.08,104.02,3.68146756]
[1770096920172,2.96462926,104.06,104.02,3.68146756]
[1770096920375,6.52719379,104.05,104.0,3.5734868]
[1770096920679,6.52719379,104.03,103.98,3.5734868]
[1770096921378,2.96462926,104.02,103.98,3.5734868]
[1770096922479,12.22206453,104.03,103.98,3.5734868]
[1770096922882,12.22296453,104.02,103.96,12.2384868]
[1770096923282,3.56256453,104.04,103.99,0.06066845]
[1770096923677,8.6596,104.03,103.99,0.06066845]
[1770096923878,12.22216453,104.03,103.99,0.06066845]
[1770096926080,3.56256453,104.02,103.97,3.5734868]
[1770096927486,3.56256453,104.01,103.95,3.5734868]
[1770096927779,3.56256453,104.0,103.93,3.5734868]
[1770096928687,3.56256453,103.98,103.93,3.5734868]
[1770096929088,3.56256453,103.98,103.91,387.2134868]
[1770096929987,3.56256453,103.98,103.91,12.2422868]
[1770096930592,3.56256453,103.97,103.91,12.2422868]
[1770096930993,3.56256453,103.97,103.91,3.5734868]
[1770096931298,3.56256453,103.96,103.89,12.2439868]
[1770096931595,3.56256453,103.96,103.9,3.5734868]
[1770096932693,12.22796453,103.96,103.9,3.5734868]
[1770096932893,3.56256453,103.95,103.9,3.5734868]
[1770096933487,3.56256453,103.95,103.88,3.5734868]
[1770096933691,12.22796453,103.96,103.88,3.5734868]
[1770096935396,12.22796453,103.96,103.89,12.2445868]
[1770096935895,12.22796453,103.96,103.9,3.5734868]
[1770096936800,3.56256453,103.96,103.9,3.5734868]
[1770096937299,3.56256453,103.96,103.91,3.5734868]
[1770096941798,19.63788787,103.98,103.91,3.5734868]
[1770096942006,12.22696453,103.98,103.92,3.5734868]
[1770096942400,2.96342842,103.97,103.92,3.5734868]
[1770096943203,2.96342842,103.96,103.92,3.5734868]
[1770096943605,6.52599295,103.96,103.9,3.5734868]
[1770096943905,2.96342842,103.95,103.9,3.5734868]
[1770096945306,2.96342842,103.95,103.9,12.2437868]
[1770096948003,6.52599295,103.94,103.89,8.6712]
[1770096948210,2.96342842,103.94,103.9,3.5734868]
[1770096948404,2.96342842,103.94,103.9,12.2437868]
[1770096948707,2.96342842,103.95,103.9,12.2437868]
[1770096949107,2.96342842,103.94,103.9,12.2437868]
[1770096949608,2.96342842,103.94,103.9,3.5734868]
[1770096952813,2.96342842,103.93,103.88,396.15912793]
[1770096953003,2.96342842,103.91,103.86,3.62732793]
[1770096953903,6.47400423,103.92,103.86,3.62732793]
[1770096954107,6.47400423,103.91,103.86,3.62732793]
[1770096954310,2.96342842,103.9,103.86,3.62732793]
[1770096954909,0.06074735,103.89,103.86,3.62732793]
[1770096956314,0.06074735,103.89,103.86,12.30092793]
[1770096956515,2.96342842,103.92,103.87,3.62732793]
[1770096956715,6.47400423,103.93,103.87,3.62732793]
[1770096957214,2.96342842,103.92,103.87,3.62732793]
[1770096957409,2.96342842,103.92,103.87,12.30012793]
[1770096957605,6.47400423,103.93,103.88,3.62732793]
[1770096959516,2.96342842,103.94,103.89,3.62732793]
[1770096959711,6.46122452,103.95,103.89,3.62732793]
[1770096960707,6.47400423,103.97,103.91,3.62732793]
[1770096962212,2.96342842,103.98,103.92,3.62732793]
[1770096962518,6.47400423,104.0,103.93,6.59075635]
[1770096963018,2.96342842,103.99,103.93,3.62732793]
[1770096963418,15.13610423,104.0,103.93,6.59075635]
[1770096963609,15.13610423,104.0,103.94,3.62732793]
[1770096964015,12.17267581,104.0,103.94,6.59075635]
[1770096964912,3.51057581,104.02,103.97,3.62732793]
[1770096966419,12.17097581,104.02,103.97,3.62732793]
[1770096967019,12.17097581,104.02,103.97,6.59075635]
[1770096968122,8.6612,104.01,103.97,3.62732793]
[1770096968315,12.17177581,104.01,103.96,2.96342842]
[1770096968509,12.17177581,104.01,103.95,6.59075635]
[1770096969224,12.17177581,104.01,103.96,2.96342842]
[1770096971815,12.17177581,104.01,103.97,0.0612064]
[1770096973424,3.51057581,104.03,103.98,2.96342842]
[1770096973817,3.51057581,104.03,103.97,6.65196275]
[1770096974024,3.51057581,104.03,103.98,2.96342842]
[1770096974318,3.51057581,104.03,103.98,6.59075635]
[1770096974921,12.17017581,104.03,103.98,6.59075635]
[1770096975825,8.6604,104.02,103.98,6.59075635]
[1770096977722,3.51057581,104.0,103.95,6.59075635]
[1770096977923,3.51057581,104.0,103.99,0.00015558]
[1770096978123,3.51057581,104.0,103.94,2.96342842]
[1770096978425,12.17347581,103.99,103.93,6.59075635]
[1770096978817,3.51057581,103.99,103.94,6.59075635]
[1770096979017,12.17257581,104.01,103.96,2.96342842]
[1770096979216,6.47400423,104.0,103.94,12.29432793]
[1770096980427,15.13610423,104.0,103.94,12.29432793]
[1770096981520,3.51057581,104.0,103.95,12.08831126]
[1770096982327,8.6615,104.01,103.96,3.42211126]
[1770096982926,12.32113885,104.01,103.96,3.42211126]
[1770096984226,15.28456727,104.01,103.96,3.42211126]
[1770096986826,6.62306727,104.01,103.96,3.42211126]
[1770096987727,6.62306727,104.01,103.96,12.08731126]
[1770096987929,6.62306727,104.0,103.94,3.42211126]
[1770096989327,6.62306727,104.0,103.95,8.6662]
[1770096990833,3.58619333,103.99,103.95,8.6662]
[1770096991129,6.54962175,103.99,103.94,3.42211126]
[1770096992025,3.58619333,103.99,103.94,3.42211126]
[1770096992229,2.96342842,104.0,103.95,3.42211126]
[1770096992428,12.24748609,104.01,103.95,3.42211126]
[1770096992429,15.21091451,104.01,103.95,3.42211126]
[1770096993329,15.21091451,104.01,103.95,12.08831126]
[1770096994130,15.22202307,104.0,103.95,3.42211126]
[1770096994528,2.96342842,103.99,103.95,3.42211126]
[1770096994730,6.62306727,103.98,103.93,383.76]
[1770096994930,6.62306727,103.98,103.92,12.09021126]
[1770096995130,6.62306727,103.98,103.93,3.42211126]
[1770096996435,6.62306727,103.98,103.93,12.08991126]
[1770096997633,3.65963885,103.98,103.93,12.08991126]
[1770096998529,0.06090845,103.97,103.93,12.08991126]
[1770097007345,3.02355879,103.97,103.93,12.08991126]
[1770097008948,2.96265034,103.96,103.92,3.42211126]
[1770097011249,0.06090845,103.97,103.93,3.68517293]
[1770097011848,2.96265034,103.98,103.93,3.68517293]
[1770097012346,2.96265034,103.98,103.93,12.35287293]
[1770097012545,0.06116745,103.97,103.93,12.35287293]
[1770097019752,3.02381779,103.97,103.93,3.68517293]
[1770097020253,3.02381779,103.97,103.92,355.38]
[1770097020254,2.96265034,103.96,103.92,355.38]
[1770097021654,2.96265034,103.96,103.92,359.06517293]
[1770097022055,6.70095182,103.97,103.92,359.06517293]
[1770097022558,0.06116745,103.97,103.93,3.68517293]
[1770097023257,0.06116745,103.97,103.93,12.35227293]
[1770097024954,3.02381779,103.97,103.93,3.68517293]
[1770097025163,3.73830148,103.97,103.93,3.68517293]
[1770097025548,0.06116745,103.97,103.94,3.68517293]
[1770097025753,2.96265034,104.0,103.94,3.68517293]
[1770097025754,3.67713403,104.0,103.95,3.68517293]
[1770097028062,3.67713403,104.02,103.97,3.68517293]
[1770097028260,12.33733403,104.03,103.97,6.64782327]
[1770097028860,3.67713403,104.03,103.98,3.68517293]
[1770097031365,6.63978437,104.03,103.98,3.68517293]
[1770097032154,3.67713403,104.01,103.94,3.68517293]
[1770097032360,2.96265034,104.0,103.95,3.68517293]
[1770097032964,6.63978437,104.01,103.95,3.68517293]
[1770097033361,15.30138437,104.01,103.95,3.68517293]
[1770097034366,2.96265034,104.0,103.95,3.68517293]
[1770097035764,12.33873403,104.01,103.93,12.35297293]
[1770097035765,2.96265034,103.98,103.93,12.35297293]
[1770097036172,6.63978437,103.97,103.91,387.44517293]
[1770097036372,6.63978437,103.97,103.92,12.35377293]
[1770097036568,2.96265034,103.98,103.93,3.68517293]
[1770097040474,15.30268437,103.99,103.94,0.06064267]
[1770097040871,6.63978437,103.99,103.94,0.06064267]
[1770097042273,6.61018755,104.01,103.95,3.43470337]
[1770097043377,6.61018755,104.01,103.97,0.06083342]
[1770097043576,3.64753721,104.01,103.97,0.06083342]
[1770097046580,3.64753721,104.03,103.98,6.39735371]
[1770097046973,8.6594,104.04,103.99,6.39735371]
[1770097047171,3.64753721,104.05,104.0,6.39735371]
[1770097047372,3.64753721,104.05,104.01,2.96265034]
[1770097047571,3.64753721,104.05,104.0,6.39735371]
[1770097050582,3.64753721,104.04,103.98,3.43470337]
[1770097050782,3.64753721,104.04,103.98,6.39735371]
[1770097050980,3.64753721,104.04,103.99,2.96265034]
[1770097051478,3.64753721,104.04,103.99,6.39735371]
[1770097052382,12.30633721,104.04,103.99,6.39735371]
[1770097052577,12.30633721,104.04,103.99,3.43470337]
[1770097053679,3.49111148,104.05,104.0,3.43470337]
[1770097054882,12.14911148,104.05,104.0,3.43470337]
[1770097055779,15.11176182,104.05,104.0,3.43470337]
[1770097056494,6.45376182,104.05,104.0,3.43470337]
[1770097056675,3.49111148,104.05,104.0,3.43470337]
[1770097058682,6.45376182,104.05,104.0,3.43470337]
[1770097061382,11.61975034,104.06,104.01,3.43470337]
[1770097061786,15.10397318,104.06,104.01,3.43470337]
[1770097062380,15.09994406,104.06,104.01,3.43470337]
[1770097065983,6.42223011,104.05,104.01,3.43470337]
[1770097066880,11.61572122,104.06,104.01,3.43470337]
[1770097067084,6.42083714,104.05,104.01,3.43470337]
[1770097067686,3.46221592,104.05,104.01,3.43470337]
[1770097072793,12.12011592,104.05,103.99,3.69081967]
[1770097073288,3.46221592,104.05,103.99,12.35331967]
[1770097073595,3.46221592,104.05,104.0,3.69081967]
[1770097073893,6.42083714,104.05,104.0,3.69081967]
[1770097076887,6.42083714,104.05,104.01,3.69081967]
[1770097077193,3.46221592,104.05,104.01,3.69081967]
[1770097078685,2.95862122,104.06,104.02,3.69081967]
[1770097078892,15.11064628,104.07,104.02,3.69081967]
[1770097079185,6.45434628,104.07,104.02,3.69081967]
[1770097079390,6.45434628,104.09,104.03,3.69081967]
[1770097080092,2.95862122,104.08,104.03,3.69081967]
[1770097080390,2.95862122,104.08,104.03,12.35031967]
[1770097080592,2.95862122,104.08,104.03,3.69081967]
[1770097080797,2.95862122,104.09,104.03,3.69081967]
[1770097080985,6.55936633,104.1,104.04,3.69081967]
[1770097082189,2.95862122,104.1,104.04,3.69081967]
[1770097082393,6.55936633,104.08,104.02,3.69081967]
[1770097082789,6.55936633,104.08,104.03,3.69081967]
[1770097082994,2.95862122,104.09,104.03,3.69081967]
[1770097083195,6.55936633,104.09,104.03,3.69081967]
[1770097083696,6.55936633,104.08,104.03,3.69081967]
[1770097084999,2.95862122,104.09,104.03,3.69081967]
[1770097085297,15.21316633,104.1,104.03,3.69081967]
[1770097085697,15.21316633,104.1,104.04,3.69081967]
[1770097086097,6.55936633,104.1,104.04,3.69081967]
[1770097086292,6.55936633,104.1,104.05,3.69081967]
[1770097087395,6.55936633,104.12,104.06,3.69081967]
[1770097087594,2.95862122,104.11,104.06,3.69081967]
[1770097087899,6.55936633,104.11,104.06,3.69081967]
[1770097088202,3.60074511,104.11,104.06,3.69081967]
[1770097088700,6.55936633,104.11,104.06,3.69081967]
[1770097088900,3.60074511,104.11,104.06,3.69081967]
[1770097089202,2.95862122,104.12,104.07,3.69081967]
[1770097089401,6.55936633,104.12,104.07,3.69081967]
[1770097090205,3.60074511,104.12,104.07,3.69081967]
[1770097090504,6.55936633,104.12,104.07,12.34691967]
[1770097091300,6.55936633,104.12,104.08,3.69081967]
[1770097091603,3.60074511,104.12,104.08,12.34601967]
[1770097091798,3.60074511,104.16,104.09,3.69081967]
[1770097091994,6.55936633,104.16,104.11,3.69081967]
[1770097092706,134.4985,104.19,104.09,3.69081967]
[1770097092707,2.95862122,104.13,104.09,3.69081967]
[1770097092998,6.55936633,104.14,104.09,3.69081967]
[1770097094607,2.95862122,104.12,104.07,12.34701967]
[1770097099108,2.95862122,104.11,104.07,3.69081967]
[1770097100808,2.95862122,104.11,104.05,383.42]
[1770097100809,2.95862122,104.09,104.05,3.56225303]
[1770097101008,6.53402532,104.09,104.03,3.56225303]
[1770097101203,2.95862122,104.08,104.03,3.56225303]
[1770097101405,3.5754041,104.09,104.02,288.3]
[1770097101406,6.53402532,104.07,104.02,288.3]
[1770097101605,6.53402532,104.07,104.01,12.22265303]
[1770097101606,2.95862122,104.06,104.01,12.22265303]
[1770097102108,2.95862122,104.06,104.02,3.56225303]
[1770097103802,2.95862122,104.08,104.03,3.56225303]
[1770097104006,15.18902532,104.09,104.03,3.56225303]
[1770097104407,2.95862122,104.08,104.03,3.56225303]
[1770097105807,6.53402532,104.09,104.04,3.56225303]
[1770097106607,11.61232122,104.1,104.05,3.56225303]
[1770097106809,2.95862122,104.1,104.05,3.56225303]
[1770097107209,3.5754041,104.11,104.05,3.56225303]
[1770097107210,2.95862122,104.09,104.05,3.56225303]
[1770097107604,6.53402532,104.1,104.05,3.56225303]
[1770097110912,6.53402532,104.1,104.05,12.21995303]
[1770097111713,6.53402532,104.1,104.05,3.56225303]
[1770097112413,2.95862122,104.09,104.05,3.56225303]
[1770097113716,6.53402532,104.1,104.05,3.56225303]
[1770097116419,6.53402532,104.1,104.04,8.6586]
[1770097116420,6.53402532,104.09,104.04,3.56225303]
[1770097118521,3.5754041,104.08,104.04,3.56225303]
[1770097118726,6.53402532,104.08,104.03,12.22175303]
[1770097118921,3.5754041,104.08,104.03,12.22175303]
[1770097119725,3.5754041,104.08,104.03,15.18037425]
[1770097121327,12.2308041,104.08,104.03,6.52087425]
[1770097121721,12.2308041,104.08,104.03,3.56225303]
[1770097122020,11.61402122,104.08,104.03,3.56225303]
[1770097122226,3.5754041,104.07,104.03,3.56225303]
[1770097124829,3.5754041,104.09,104.04,3.56225303]
[1770097125422,8.6544,104.1,104.05,3.56225303]
[1770097125626,6.53283604,104.11,104.05,6.51968497]
[1770097125927,3.5754041,104.11,104.05,6.51968497]
[1770097126130,6.53283604,104.11,104.05,6.51968497]
[1770097127330,15.18583604,104.11,104.05,15.17738497]
[1770097127631,6.53283604,104.09,104.03,387.00225303]
[1770097127825,3.5754041,104.08,104.03,387.00225303]
[1770097128726,3.5754041,104.08,104.03,383.44]
[1770097128931,6.53283604,104.1,104.04,3.56225303]
[1770097129134,3.5754041,104.09,104.04,6.51968497]
[1770097129432,12.2301041,104.09,104.04,6.51968497]
[1770097130134,12.2301041,104.09,104.04,3.56225303]
[1770097131334,2.95743194,104.1,104.02,3.67685807]
[1770097131335,3.60289718,104.07,104.02,3.67685807]
[1770097131540,11.61293194,104.08,104.0,3.67685807]
[1770097131541,6.56032912,104.06,104.0,3.67685807]
[1770097131838,3.60289718,104.05,104.0,3.67685807]
[1770097132737,3.60289718,104.05,104.0,6.63429001]
[1770097137041,3.60289718,104.05,104.01,6.63429001]
[1770097137534,8.6572,104.06,104.01,6.69514471]
[1770097137739,12.26009718,104.06,104.01,6.69514471]
[1770097138339,8.6562,104.07,104.02,6.63429001]
[1770097138538,12.25909718,104.07,104.02,6.63429001]
[1770097140336,3.5849955,104.05,104.0,12.33885807]
[1770097140636,6.12151111,104.06,104.0,3.67685807]
[1770097140842,6.12151111,104.06,104.0,6.63429001]
[1770097141243,3.16407917,104.05,104.0,6.63429001]
[1770097142234,3.16407917,104.05,104.01,0.06095558]
[1770097142439,3.16407917,104.05,104.01,8.72215558]
[1770097143737,3.16407917,104.05,104.01,15.35644559]
[1770097144044,11.61283194,104.08,104.01,15.35644559]
[1770097144045,6.1024989,104.09,104.03,6.63429001]
[1770097144247,3.14506696,104.09,104.03,6.63429001]
[1770097145543,3.13513443,104.08,104.03,6.63429001]
[1770097145841,3.13513443,104.08,104.05,0.06066154]
[1770097146050,3.13513443,104.07,104.01,6.63429001]
[1770097146640,3.12946412,104.05,104.0,386.47743194]
[1770097146845,3.12946412,104.05,104.0,2.95743194]
[1770097147347,3.12946412,104.05,104.0,6.63429001]
[1770097147850,11.78736412,104.05,104.0,3.67685807]
[1770097148649,11.80245596,104.04,103.99,2.95743194]
[1770097148945,11.80245596,104.04,103.98,6.63429001]
[1770097149549,3.14375596,104.03,103.98,6.63429001]
[1770097150644,8.6587,104.04,103.99,2.95743194]
[1770097150848,11.77570477,104.04,103.99,6.63429001]
[1770097151045,3.11700477,104.06,104.0,6.63429001]
[1770097151349,3.11700477,104.06,104.01,2.95743194]
[1770097151848,3.11700381,104.05,104.0,6.63429001]
[1770097153144,11.77510381,104.05,104.0,6.63429001]
[1770097153353,11.77510381,104.05,104.01,2.95743194]
[1770097158051,3.0769316,104.04,103.98,3.67685807]
[1770097158249,3.0769316,104.03,103.98,2.95743194]
[1770097158454,3.0769316,104.03,103.98,6.63429001]
[1770097159356,11.7365316,104.03,103.98,6.63429001]
[1770097159856,2.96831607,104.02,103.97,2.95743194]
[1770097160055,11.62871607,104.02,103.97,2.95743194]
[1770097160256,11.62871607,104.02,103.97,6.52225109]
[1770097161257,11.62871607,104.02,103.97,3.56481915]
[1770097162452,2.96831607,104.02,103.96,2.95743194]
[1770097162659,3.01428824,104.01,103.96,2.95743194]
[1770097163866,3.01428824,104.01,103.97,2.95743194]
[1770097164254,3.01428824,104.01,103.96,6.52225109]
[1770097166466,3.01428824,104.01,103.97,2.95743194]
[1770097168662,3.01428824,104.01,103.96,6.52225109]
[1770097168965,11.67548824,104.01,103.96,3.56481915]
[1770097169160,11.67548824,104.01,103.96,6.52225109]
[1770097177472,11.67548824,104.01,103.97,6.52225109]
[1770097177672,3.01428824,104.01,103.97,6.52225109]
[1770097177874,8.6604,104.02,103.97,6.52225109]
[1770097178373,8.6604,104.02,103.98,6.52225109]
[1770097178774,11.79953442,104.02,103.97,6.52225109]
[1770097184390,11.79953442,104.02,103.97,6.52522429]
[1770097184690,11.79953442,104.02,103.98,6.52522429]
[1770097185888,11.79953442,104.02,103.98,3.56481915]
[1770097186890,11.79953442,104.02,103.98,6.52522429]
[1770097187594,3.13913442,104.02,103.98,3.56481915]
[1770097188292,11.79953442,104.02,103.98,3.56481915]
[1770097188692,3.13913442,104.02,103.97,2.96040514]
[1770097190288,8.6612,104.01,103.97,2.96040514]
[1770097190485,8.6612,104.01,103.97,6.45306645]
[1770097193693,11.78999673,104.01,103.97,3.49266131]
[1770097194400,11.78999673,104.01,103.97,6.45306645]
[1770097194593,11.78999673,104.01,103.97,2.96040514]
[1770097194795,11.78941928,104.0,103.95,6.60872242]
[1770097194995,3.12721928,103.99,103.95,6.60872242]
[1770097197195,11.79011928,103.99,103.95,6.60872242]
[1770097197997,3.12721928,103.99,103.95,6.60872242]
[1770097200196,3.12721928,103.99,103.95,2.96040514]
[1770097200402,3.12721928,103.99,103.93,3.64831728]
[1770097200403,2.986393,103.98,103.93,3.64831728]
[1770097200600,2.93234486,103.96,103.91,15.27752242]
[1770097201602,2.93234435,103.98,103.92,15.27732242]
[1770097201803,2.93234435,103.98,103.93,3.64831728]
[1770097201997,2.93234435,103.98,103.93,6.60872242]
[1770097202497,2.93234435,103.98,103.94,6.60872242]
[1770097202701,2.93234435,103.98,103.94,3.64831728]
[1770097203198,2.93234435,103.98,103.93,6.60872242]
[1770097203902,2.93234435,103.98,103.94,3.64831728]
[1770097204398,2.94055064,103.97,103.92,15.27732242]
[1770097204805,2.94055064,103.97,103.92,3.64831728]
[1770097205205,5.90095578,103.97,103.92,3.64831728]
[1770097206605,14.56555578,103.97,103.92,3.64831728]
[1770097206798,2.93564488,103.94,103.9,3.64831728]
[1770097207005,2.93564488,103.93,103.88,3.64831728]
[1770097207204,2.93564488,103.93,103.89,3.64831728]
[1770097208611,2.94489969,103.94,103.89,3.64831728]
[1770097208812,2.94489969,103.94,103.89,6.60872242]
[1770097209407,2.94489969,103.94,103.89,3.64831728]
[1770097209911,5.90530483,103.94,103.89,3.64831728]
[1770097211107,2.96040514,103.94,103.89,3.64831728]
[1770097211314,14.5356351,103.95,103.9,3.64831728]
[1770097213206,11.57522996,103.95,103.9,3.64831728]
[1770097213406,2.96040514,103.94,103.9,3.64831728]
[1770097213612,14.5356351,103.95,103.9,3.64831728]
[1770097216707,5.8687351,103.95,103.9,3.64831728]
[1770097216911,2.90832996,103.95,103.91,3.64831728]
[1770097217816,2.90832996,103.95,103.89,6.60872242]
[1770097218814,14.5349351,103.95,103.89,3.64831728]
[1770097219205,5.88151491,103.94,103.89,3.64831728]
[1770097220710,14.54881491,103.94,103.89,3.64831728]
[1770097221113,2.92888827,103.93,103.87,6.59379676]
[1770097221316,2.92888827,103.93,103.88,15.26559676]
[1770097221517,5.88929301,103.95,103.9,3.63339162]
[1770097221714,2.92888787,103.95,103.9,3.63339162]
[1770097222116,2.92888787,103.95,103.9,6.59379676]
[1770097223407,2.92888787,103.95,103.9,3.63339162]
[1770097224120,2.91498346,103.94,103.9,3.63339162]
[1770097224815,8.6664,103.95,103.9,3.63339162]
[1770097225216,12.06811315,103.95,103.9,3.63339162]